Workbook

Sheet Projektid
B1: Jaanuar | C1: Veebruar | D1: Märts | E1: Aprill | F1: Mai | G1: Juuni | H1: Juuli | I1: August | J1: September | K1: Oktoober | L1: November | M1: Detsember | N1: KOKKU
A2: Projekt 1
A3: Transpordikulu | B3: 234 | C3: 434 | D3: 233 | E3: 233 | F3: 655 | G3: 333 | H3: 435 | I3: 354 | J3: 765 | K3: 234 | L3: 554 | M3: 345 | N3: =SUM(H3:M3,B3:G3) -> 4809
A4: Kontorikulu | B4: 21 | C4: 23 | D4: 55 | E4: 1 | F4: 67 | G4: 22 | H4: 45 | I4: 66 | J4: 89 | K4: 45 | L4: 22 | M4: 65 | N4: =SUM(H4:M4,B4:G4) -> 521
A5: Töötaja 1 töötasu | B5: 1032 | C5: 1032 | D5: 1032 | E5: 1032 | F5: 1032 | G5: 1032 | H5: 1032 | I5: 1032 | J5: 1032 | K5: 1032 | L5: 1032 | M5: 1032 | N5: =SUM(H5:M5,B5:G5) -> 12384
A6: Töötaja 2 töötasu | B6: 1234 | C6: 1234 | D6: 1234 | E6: 1234 | F6: 1234 | G6: 1234 | H6: 1234 | I6: 1234 | J6: 1234 | K6: 1234 | L6: 1234 | M6: 1234 | N6: =SUM(H6:M6,B6:G6) -> 14808
A7: Projekt 1 kokku | B7: =SUM(B3:B6) -> 2521 | C7: =SUM(C3:C6) -> 2723 | D7: =SUM(D3:D6) -> 2554 | E7: 2500 | F7: 2988 | G7: =SUM(G3:G6) -> 2621 | H7: 2746 | I7: 2686 | J7: 3120 | K7: 2545 | L7: 2842 | M7: 2676 | N7: 32522
A9: Projekt 2
A10: Transpordikulu | B10: 245 | C10: 392 | D10: 402 | E10: 932 | F10: 823 | G10: 112 | H10: 232 | I10: 324 | J10: 183 | K10: 293 | L10: 22 | M10: 234 | N10: =SUM(H10:M10,B10:G10) -> 4194
A11: Kontorikulu | B11: 62 | C11: 23 | D11: 19 | E11: 17 | F11: 5 | G11: 23 | H11: 92 | I11: 71 | J11: 23 | K11: 11 | L11: 17 | M11: 6 | N11: =SUM(H11:M11,B11:G11) -> 369
A12: Töötaja 1 töötasu | B12: 983 | C12: 983 | D12: 983 | E12: 983 | F12: 983 | G12: 983 | H12: 983 | I12: 983 | J12: 983 | K12: 983 | L12: 983 | M12: 983 | N12: =SUM(H12:M12,B12:G12) -> 11796
A13: Töötaja 2 töötasu | B13: 673 | C13: 673 | D13: 673 | E13: 673 | F13: 673 | G13: 673 | H13: 673 | I13: 673 | J13: 673 | K13: 673 | L13: 673 | M13: 673 | N13: =SUM(H13:M13,B13:G13) -> 8076
A14: Projekt 2 kokku | B14: =SUM(B10:B13) -> 1963 | C14: =SUM(C10:C13) -> 2071 | D14: 2077 | E14: 2605 | F14: 2484 | G14: 1791 | H14: 1980 | I14: 2051 | J14: 1862 | K14: 1960 | L14: 1695 | M14: 1896 | N14: =SUM(N10:N13) -> 24435
A16: Projektid KOKKU | B16: =B14+B7 -> 4484 | C16: =C14+C7 -> 4794 | D16: 4631 | E16: 5105 | F16: 5472 | G16: 4412 | H16: 4726 | I16: 4737 | J16: 4982 | K16: 4505 | L16: 4537 | M16: 4572 | N16: 56957
